bitfinex/quotes_SOLUSD_20220109
["timestamp","ask_amount","ask_price","bid_price","bid_amount"]
[1641689033979,13.6,142.53,142.45,1.91654551]
[1641689034578,24.1271,142.53,142.45,1.91654551]
[1641689034982,24.1271,142.53,142.41,1.91654551]
[1641689035781,24.1271,142.53,142.42,10.5304]
[1641689037784,23.8671,142.53,142.42,10.5304]
[1641689038384,23.8671,142.53,142.42,12.44694551]
[1641689038984,0.26,142.52,142.42,12.44694551]
[1641689039189,10.5301,142.48,142.42,12.44694551]
[1641689039387,0.51,142.47,142.42,1.91654551]
[1641689039685,13.6,142.47,142.42,1.91654551]
[1641689039984,13.6,142.47,142.41,1.91654551]
[1641689040185,26.44136084,142.46,142.41,1.91654551]
[1641689040386,10.5351,142.44,142.41,1.91654551]
[1641689040586,13.09,142.43,142.41,1.91654551]
[1641689040786,13.6,142.43,142.41,1.91654551]
[1641689041085,13.6,142.43,142.38,1.91654551]
[1641689041285,10.5359,142.41,142.38,1.91654551]
[1641689041987,3.0,142.4,142.38,1.91654551]
[1641689042188,3.0,142.4,142.37,1.91654551]
[1641689042390,10.5372,142.39,142.37,1.91654551]
[1641689042789,38.28032913,142.39,142.37,1.91654551]
[1641689042990,38.28032913,142.39,142.36,1.91654551]
[1641689043392,0.26,142.38,142.36,1.91654551]
[1641689043592,0.51,142.38,142.36,1.91654551]
[1641689043792,10.5382,142.37,142.36,1.91654551]
[1641689044194,0.26,142.38,142.36,1.91654551]
[1641689044496,27.74312913,142.39,142.36,1.91654551]
[1641689045094,27.74312913,142.39,142.33,1.91654551]
[1641689045296,10.09,142.4,142.33,1.91654551]
[1641689045495,0.25,142.39,142.33,1.91654551]
[1641689045895,10.09,142.4,142.33,12.45364551]
[1641689046296,10.09,142.4,142.34,29.64056053]
[1641689046696,10.09,142.4,142.35,0.25]
[1641689046998,20.626,142.4,142.35,0.51]
[1641689047196,20.626,142.4,142.34,10.536]
[1641689047396,20.626,142.4,142.33,1.91654551]
[1641689047602,20.626,142.4,142.35,1.91654551]
[1641689047796,20.626,142.4,142.33,10.5368]
[1641689047996,20.626,142.4,142.33,10.7968]
[1641689048197,23.95490406,142.39,142.33,10.5368]
[1641689049501,34.49220406,142.39,142.33,10.5368]
[1641689050304,34.49220406,142.39,142.31,10.5381]
[1641689050599,3.0,142.38,142.31,10.5381]
[1641689051501,13.5379,142.38,142.31,39.79655726]
[1641689051799,3.0,142.38,142.31,39.79655726]
[1641689052002,23.95490406,142.39,142.32,0.26]
[1641689052201,23.95490406,142.39,142.34,10.5362]
[1641689052403,10.09,142.4,142.35,0.51]
[1641689053201,10.09,142.4,142.36,10.5341]
[1641689053402,24.88650916,142.42,142.36,10.5341]
[1641689053603,35.42150916,142.42,142.36,10.5341]
[1641689055811,10.09,142.43,142.36,10.5341]
[1641689056010,10.09,142.43,142.37,0.51]
[1641689056210,10.09,142.47,142.4,10.5317]
[1641689056832,38.22576826,142.47,142.41,0.51]
[1641689057334,38.22576826,142.47,142.41,0.26]
[1641689057533,38.22576826,142.47,142.4,0.51]
[1641689057933,38.22576826,142.47,142.43,10.5299]
[1641689058434,38.22576826,142.47,142.4,0.51]
[1641689058734,38.22576826,142.47,142.4,0.26]
[1641689058934,38.22576826,142.47,142.39,23.5234]
[1641689058935,3.0,142.46,142.39,23.5234]
[1641689059135,38.22576826,142.47,142.39,23.5234]
[1641689059535,0.26,142.46,142.39,23.5234]
[1641689059735,0.26,142.46,142.35,177.127]
[1641689059940,10.5344,142.43,142.36,0.25]
[1641689060335,3.26,142.46,142.36,0.25]
[1641689060535,13.09,142.46,142.36,0.51]
[1641689060942,10.09,142.46,142.36,0.51]
[1641689061135,10.09,142.46,142.4,35.0967]
[1641689061436,10.09,142.46,142.42,10.5302]
[1641689062440,10.09,142.46,142.41,10.5313]
[1641689068448,20.6221,142.46,142.4,10.5321]
[1641689069248,20.6221,142.46,142.38,22.5208]
[1641689069448,0.25,142.45,142.39,10.5327]
[1641689069649,10.5334,142.44,142.38,22.5208]
[1641689070855,29.1141635,142.43,142.38,22.5208]
[1641689071049,39.6486635,142.43,142.37,10.5342]
[1641689071248,39.6486635,142.43,142.35,23.8599]
[1641689071454,39.6486635,142.43,142.36,0.25]
[1641689072250,39.6486635,142.43,142.36,10.785]
[1641689072251,28.8541635,142.43,142.36,10.785]
[1641689072852,38.9441635,142.43,142.36,10.785]
[1641689073251,38.9441635,142.43,142.36,10.535]
[1641689073451,0.26,142.42,142.36,10.535]
[1641689073650,10.35,142.42,142.36,10.535]
[1641689073950,0.26,142.41,142.36,10.535]
[1641689075049,10.09,142.42,142.36,10.535]
[1641689076051,28.8541635,142.43,142.37,3.51]
[1641689076252,28.8541635,142.43,142.4,10.5314]
[1641689078354,28.8541635,142.43,142.41,6.06437095]
[1641689078956,28.8541635,142.43,142.4,10.5314]
[1641689079158,28.8541635,142.43,142.38,10.5332]
[1641689080759,39.3877635,142.43,142.38,10.5332]
[1641689081558,39.3877635,142.43,142.37,10.5341]
[1641689081760,28.8541635,142.43,142.36,23.9898]
[1641689082659,28.8541635,142.43,142.39,10.5326]
[1641689084061,10.5311,142.47,142.41,10.5311]
[1641689084462,10.09,142.46,142.41,10.5311]
[1641689084662,10.35,142.46,142.41,10.5311]
[1641689085062,29.22384803,142.45,142.41,10.5311]
[1641689085263,0.26,142.44,142.41,10.5311]
[1641689085565,29.22384803,142.45,142.41,10.5311]
[1641689085765,0.26,142.44,142.41,10.5311]
[1641689086164,29.22384803,142.45,142.4,10.5319]
[1641689086364,10.09,142.46,142.41,0.25]
[1641689086565,10.09,142.46,142.41,0.51]
[1641689086765,9.59,142.49,142.41,0.51]
[1641689086965,10.09,142.49,142.41,0.25]
[1641689087166,10.09,142.49,142.45,10.5282]
[1641689087368,36.01957839,142.49,142.45,10.5282]
[1641689088773,36.01957839,142.49,142.44,10.5291]
[1641689089377,46.54887839,142.49,142.44,10.5291]
[1641689090178,36.01957839,142.49,142.44,10.5291]
[1641689091100,10.09,142.52,142.45,0.26]
[1641689091301,10.09,142.53,142.45,0.26]
[1641689091499,10.09,142.53,142.44,0.26]
[1641689091901,30.74833602,142.52,142.44,0.26]
[1641689092902,30.74833602,142.52,142.48,10.5257]
[1641689094804,30.74833602,142.52,142.49,10.7853]
[1641689095203,30.74833602,142.52,142.5,6.06437095]
[1641689095807,20.615,142.55,142.5,6.06437095]
[1641689096006,20.615,142.55,142.5,16.58917095]
[1641689096406,10.09,142.55,142.51,0.26]
[1641689096612,32.9955,142.58,142.51,0.26]
[1641689096809,35.6661426,142.58,142.51,0.26]
[1641689097206,35.6661426,142.58,142.49,0.26]
[1641689097906,10.7733,142.57,142.52,10.5231]
[1641689099910,10.7733,142.57,142.49,24.764]
[1641689100111,10.7733,142.57,142.51,10.5238]
[1641689100720,11.74345313,142.56,142.4,23.8351]
[1641689100917,26.51121788,142.55,142.4,23.1449]
[1641689101114,26.51121788,142.55,142.43,10.5296]
[1641689101115,36.10371192,142.49,142.43,10.5296]
[1641689101915,36.10371192,142.49,142.4,158.5609]
[1641689102115,36.10371192,142.49,142.42,10.53]
[1641689102515,10.5303,142.47,142.42,10.53]
[1641689102716,10.5303,142.47,142.4,123.4638]
[1641689102916,10.5303,142.47,142.4,47.2195]
[1641689103317,10.5303,142.47,142.41,10.5303]
[1641689103917,10.5303,142.47,142.42,0.26]
[1641689104318,10.5295,142.48,142.42,10.7899]
[1641689104619,25.57421192,142.49,142.43,0.26]
[1641689104818,25.57421192,142.49,142.41,27.42748367]
[1641689104819,25.57421192,142.49,142.41,27.67748367]
[1641689105321,25.57421192,142.49,142.44,10.5286]
[1641689105722,10.5286,142.5,142.44,10.5286]
[1641689105921,10.09,142.53,142.45,0.51]
[1641689106323,20.616,142.53,142.47,10.526]
[1641689106523,20.616,142.53,142.48,0.26]
[1641689107132,20.616,142.53,142.43,0.51]
[1641689107934,20.616,142.53,142.48,10.5258]
[1641689108734,10.09,142.53,142.48,10.5258]
[1641689109347,10.09,142.53,142.49,0.25]
[1641689109549,35.0857,142.57,142.49,0.25]
[1641689109550,26.74248276,142.57,142.49,7.879]
[1641689109749,5.72388197,142.66,142.49,7.879]
[1641689109750,10.09,142.62,142.53,10.5209]
[1641689109948,79.2185,142.65,142.54,0.51]
[1641689109949,10.09,142.65,142.54,0.51]
[1641689110650,10.09,142.65,142.54,3.25]
[1641689110849,26.69081245,142.64,142.54,3.25]
[1641689111049,26.69081245,142.64,142.55,0.26]
[1641689111450,26.69081245,142.64,142.55,3.26]
[1641689111651,26.69081245,142.64,142.53,23.6614]
[1641689111652,26.69081245,142.64,142.53,47.30010893]
[1641689111853,26.69081245,142.64,142.58,10.5186]
[1641689112252,26.69081245,142.64,142.59,0.51]
[1641689112552,26.69081245,142.64,142.59,0.26]
[1641689112753,26.69081245,142.64,142.58,0.25]
[1641689112952,10.09,142.65,142.61,10.5165]
[1641689113151,10.09,142.7,142.61,10.5165]
[1641689113352,10.09,142.7,142.62,0.51]
[1641689113553,10.09,142.7,142.62,0.25]
[1641689113754,100.42388197,142.74,142.62,0.25]
[1641689113755,110.51388197,142.74,142.62,0.25]
[1641689113952,29.55350703,142.73,142.62,7.984]
[1641689114253,29.55350703,142.73,142.66,27.14342518]
[1641689114452,29.55350703,142.73,142.67,0.51]
[1641689114652,5.72388197,142.74,142.67,0.51]
[1641689114853,10.09,142.76,142.67,0.51]
[1641689115256,10.09,142.76,142.72,10.5082]
[1641689115456,10.09,142.79,142.73,0.26]
[1641689115754,41.70211898,142.79,142.73,0.26]
[1641689116054,10.09,142.83,142.73,0.26]
[1641689116256,15.81388197,142.85,142.72,30.68340167]
[1641689116870,94.7,142.84,142.73,10.09]
[1641689117264,65.5417,142.84,142.74,3.51]
[1641689117462,5.72388197,142.85,142.76,70.0]
[1641689117661,174.72451881,142.91,142.85,0.51]
[1641689117861,5.92451881,142.91,142.89,10.4953]
[1641689118062,5.92451881,142.91,142.89,13.52749997]
[1641689118263,5.92451881,142.91,142.89,3.03219997]
[1641689118660,94.7,142.94,142.9,0.26]
[1641689118863,94.7,142.94,142.93,10.4924]
[1641689119064,94.7,142.94,142.93,20.21657098]
[1641689119262,94.7,142.94,142.93,20.47657098]
[1641689119462,94.7,142.94,142.93,23.24877095]
[1641689119962,168.8,143.01,142.93,23.24877095]
[1641689119963,94.7,142.99,142.96,10.4897]
[1641689120164,72.60738574,143.02,142.93,0.51]
[1641689120165,0.17618574,143.02,142.93,0.51]
[1641689120364,0.17618574,143.02,142.94,0.51]
[1641689120566,19.67258574,143.06,142.94,0.51]
[1641689120765,81.23241881,143.08,142.95,24.0922875]
[1641689121064,10.09,143.09,142.96,3.51]
[1641689121471,99.36729219,143.14,142.97,10.09]
[1641689121669,87.8031,143.14,142.97,10.09]
[1641689121867,27.79234558,143.13,142.98,3.51]
[1641689122066,3.0,143.13,142.99,10.09]
[1641689122266,3.0,143.13,143.04,10.484]
[1641689122467,94.7,143.15,143.05,0.51]
[1641689122667,94.7,143.15,143.05,6.709]
[1641689122867,10.09,143.19,143.06,10.09]
[1641689123168,0.35081545,143.21,143.07,29.04371194]
[1641689123367,0.35081545,143.21,143.12,10.4752]
[1641689123571,0.35081545,143.21,143.12,16.9472]
[1641689123769,0.35081545,143.21,143.13,0.51]
[1641689123971,0.35081545,143.21,143.13,3.51]
[1641689124570,0.35081545,143.21,143.15,10.4722]
[1641689124770,94.7,143.26,143.16,70.0]
[1641689124969,178.89,143.33,143.18,70.31520662]
[1641689124970,167.41754213,143.33,143.18,70.31520662]
[1641689125171,94.7,143.34,143.19,10.09]
[1641689125370,10.09,143.37,143.19,19.338]
[1641689125570,0.30547069,143.33,143.19,6.248]
[1641689125770,10.09,143.33,143.2,29.04538153]
[1641689126373,10.09,143.33,143.2,39.51128153]
[1641689126575,1.65345313,143.39,143.2,45.67638153]
[1641689126576,10.09,143.38,143.2,45.67638153]
[1641689126773,10.09,143.38,143.21,3.0]
[1641689126975,87.8554,143.42,143.22,10.09]
[1641689127173,10.09,143.42,143.22,10.6]
[1641689127374,41.49522098,143.42,143.23,3.0]
[1641689127576,41.49522098,143.42,143.24,10.09]
[1641689127873,49.70556811,143.42,143.24,10.35]
[1641689128073,3.0,143.41,143.2,29.04538153]
[1641689128273,11.38,143.41,143.2,37.42538153]
[1641689128474,31.36729289,143.4,143.2,37.42538153]
[1641689128673,10.4718,143.29,143.2,37.42538153]
[1641689128873,8.38,143.39,143.2,37.42538153]
[1641689128874,29.86228053,143.31,143.2,37.42538153]
[1641689129076,8.38,143.35,143.2,37.42538153]
[1641689129275,0.25,143.3,143.2,37.42538153]
[1641689129878,3.0,143.34,143.2,47.89548153]
[1641689130078,8.38,143.37,143.2,47.89548153]
[1641689130079,25.20158271,143.33,143.2,47.89548153]
[1641689130476,3.0,143.32,143.2,47.89548153]
[1641689131278,0.26,143.31,143.2,8.38]
[1641689131478,8.89,143.31,143.14,8.38]
[1641689131882,3.0,143.3,143.14,8.38]
[1641689132078,43.2938,143.29,143.14,8.38]
[1641689132278,8.63,143.29,143.16,10.4723]
[1641689132479,23.1537395,143.27,143.16,10.4723]
[1641689132978,0.25,143.26,143.16,10.4723]
[1641689133181,10.7239,143.26,143.16,10.4723]
[1641689133484,6.88,143.33,143.16,8.38]
[1641689133682,8.38,143.35,143.16,13.612]
[1641689133884,8.38,143.35,143.17,3.0]
[1641689134082,3.0,143.34,143.18,8.38]
[1641689134285,27.90853506,143.34,143.18,8.38]
[1641689134482,27.90853506,143.34,143.19,3.26]
[1641689134683,27.90853506,143.34,143.2,18.8462]
[1641689134885,0.25,143.33,143.21,28.6300298]
[1641689135085,8.38,143.38,143.23,68.0]
[1641689135285,8.38,143.38,143.23,73.95]
[1641689135483,8.38,143.38,143.24,0.26]
[1641689136121,23.0597,143.45,143.24,0.26]
[1641689136122,8.38,143.42,143.24,51.3521]
[1641689136311,8.38,143.42,143.24,54.3521]
[1641689137117,37.89912462,143.42,143.24,54.3521]
[1641689137313,7.38,143.42,143.24,54.3521]
[1641689137715,23.0597,143.45,143.25,1.65345313]
[1641689137920,217.89332002,143.48,143.26,8.89]
[1641689138125,217.89332002,143.48,143.26,12.20413572]
[1641689138320,217.89332002,143.48,143.27,29.24505997]
[1641689138520,216.39332002,143.48,143.35,24.25987474]
[1641689138722,216.39332002,143.48,143.35,59.10277474]
[1641689138918,216.39332002,143.48,143.36,0.26]
[1641689139321,0.25,143.47,143.34,8.38]
[1641689139525,11.63,143.47,143.31,8.38]
[1641689139923,11.63,143.47,143.32,0.26]
[1641689140322,11.63,143.47,143.32,27.90642366]
[1641689140921,11.63,143.47,143.35,10.454]
[1641689140922,11.38,143.47,143.35,10.454]
[1641689141122,3.0,143.47,143.35,18.834]
[1641689141325,8.38,143.5,143.36,0.51]
[1641689141522,8.38,143.5,143.36,35.3561]
[1641689141927,23.2423,143.54,143.37,10.4542]
[1641689142129,72.9432,143.57,143.38,8.38]
[1641689142329,61.69347655,143.58,143.39,26.82868429]
[1641689142531,32.9486,143.58,143.4,8.64]
[1641689142724,24.5686,143.58,143.4,8.89]
[1641689142925,1023.5686,143.58,143.41,3.0]
[1641689143125,1023.5686,143.58,143.42,8.38]
[1641689143325,1023.5686,143.58,143.42,8.89]
[1641689143326,999.0,143.58,143.42,8.89]
[1641689143525,24.77274048,143.57,143.43,3.0]
[1641689143726,24.77274048,143.57,143.44,8.38]
[1641689143926,24.77274048,143.57,143.45,30.65312664]
[1641689144131,3.0,143.56,143.44,19.0864]
[1641689144325,3.0,143.56,143.44,8.38]
[1641689144530,11.38,143.56,143.4,8.38]
[1641689145127,21.8324,143.56,143.41,33.0757205]
[1641689145328,11.38,143.56,143.41,33.0757205]
[1641689145527,0.51,143.55,143.41,33.0757205]
[1641689146131,0.26,143.55,143.41,33.0757205]
[1641689146330,989.79766967,143.58,143.48,0.30809503]
[1641689146533,983.65005039,143.58,143.49,8.38]
[1641689146733,983.65005039,143.58,143.49,10.03345313]
[1641689146932,983.65005039,143.58,143.49,8.38]
[1641689147333,983.65005039,143.58,143.5,10.9566]
[1641689147334,1007.55132025,143.58,143.5,10.9566]
[1641689147531,964.65005039,143.58,143.51,8.38]
[1641689147731,927.65005039,143.58,143.51,8.38]
[1641689147932,901.65005039,143.58,143.52,0.51]
[1641689148138,901.65005039,143.58,143.53,43.1893]
[1641689148333,901.65005039,143.58,143.53,50.3163]
[1641689148538,579.53685039,143.58,143.54,37.76121559]
[1641689148733,0.34966193,143.69,143.55,79.38]
[1641689148934,0.34966193,143.69,143.56,0.51]
[1641689149133,0.34966193,143.69,143.59,34.7848]
[1641689149333,0.34966193,143.69,143.6,8.38]
[1641689149538,0.34966193,143.69,143.6,8.89]
[1641689149734,0.34966193,143.69,143.64,10.4323]
[1641689149937,74.87436193,143.78,143.65,0.51]
[1641689150136,74.87436193,143.78,143.65,0.26]
[1641689150334,74.87436193,143.78,143.69,34.7733]
[1641689150733,27.69775959,143.77,143.66,26.80841559]
[1641689150934,27.69775959,143.77,143.71,10.4291]
[1641689151135,27.69775959,143.77,143.68,8.268]
[1641689151537,27.69775959,143.77,143.72,34.7657]
[1641689151737,27.69775959,143.77,143.67,0.26]
[1641689151937,27.69775959,143.77,143.72,0.0001]
[1641689152338,8.38,143.77,143.72,0.0001]
[1641689152541,3.0,143.76,143.72,0.0001]
[1641689152737,8.38,143.75,143.72,0.0001]
[1641689152941,19.3285,143.75,143.72,0.0001]
[1641689153142,3.0,143.74,143.72,0.0001]
[1641689153540,71.0,143.72,143.58,8.38]
[1641689153840,79.38,143.72,143.52,8.38]
[1641689154041,10.4451,143.66,143.52,8.38]
[1641689154241,34.8145,143.7,143.52,7.88]
[1641689154469,22.81679351,143.67,143.53,29.80469594]
[1641689154665,22.81679351,143.67,143.54,8.38]
[1641689154864,0.25,143.66,143.54,8.38]
[1641689155267,10.4464,143.64,143.54,8.38]
[1641689155466,22.81679351,143.67,143.54,8.38]
[1641689155866,22.81679351,143.67,143.55,0.25]
[1641689156171,10.4455,143.65,143.54,8.38]
[1641689156367,0.25,143.64,143.47,8.38]
[1641689156567,0.25,143.64,143.45,11.22325767]
[1641689156568,3.51,143.64,143.45,8.38]
[1641689156968,3.0,143.64,143.45,8.38]
[1641689157167,125.2675,143.7,143.45,8.38]
[1641689157168,30.9705628,143.63,143.46,23.78317604]
[1641689157367,125.2675,143.7,143.47,8.38]
[1641689157368,86.0599,143.7,143.47,8.38]
[1641689157569,76.6799,143.7,143.47,32.68272974]
[1641689157767,76.6799,143.7,143.48,12.8767108]
[1641689158067,76.6799,143.7,143.49,8.38]
[1641689158269,24.59721237,143.69,143.5,18.34868528]
[1641689158470,10.4447,143.66,143.53,10.4447]
[1641689158674,24.41292463,143.65,143.53,18.8247]
[1641689158871,0.25,143.64,143.53,42.60787604]
[1641689159072,24.41292463,143.65,143.53,8.38]
[1641689159375,24.41292463,143.65,143.54,0.25]
[1641689159574,24.41292463,143.65,143.51,8.38]
[1641689160178,0.26,143.64,143.51,40.39326079]
[1641689160375,0.51,143.64,143.51,32.01326079]
[1641689160773,10.4519,143.56,143.46,30.05435767]
[1641689160974,10.4519,143.56,143.47,0.25]
[1641689161174,0.51,143.64,143.47,0.25]
[1641689161773,3.51,143.64,143.47,29.13542626]
[1641689161974,10.4505,143.58,143.47,28.88542626]
[1641689162176,26.12976389,143.57,143.46,10.4511]
[1641689162375,26.37976389,143.57,143.44,10.4525]
[1641689162778,26.37976389,143.57,143.43,11.22325767]
[1641689162976,10.455,143.52,143.41,23.6727]
[1641689163177,10.455,143.52,143.42,29.91673305]
[1641689163375,38.11,143.56,143.42,40.37083305]
[1641689163376,34.85,143.56,143.42,40.37083305]
[1641689163578,79.4115,143.6,143.42,59.97409072]
[1641689163976,79.4115,143.6,143.43,3.0]
[1641689164176,65.56766175,143.59,143.44,8.38]
[1641689164477,30.72576175,143.59,143.45,22.66492827]
[1641689164677,30.72576175,143.59,143.45,25.91492827]
[1641689164876,30.72576175,143.59,143.45,25.66492827]
[1641689165076,30.72576175,143.59,143.45,13.4498]
[1641689165283,10.4532,143.54,143.45,10.4498]
[1641689165617,7.815,143.54,143.41,23.6727]
[1641689165978,7.815,143.54,143.4,19.60325767]
[1641689166179,0.26,143.58,143.43,24.4063894]
[1641689166180,23.7128717,143.55,143.43,24.4063894]
[1641689166581,23.7128717,143.55,143.43,34.8611894]
[1641689166781,23.7128717,143.55,143.43,10.4548]
[1641689166981,23.7128717,143.55,143.41,3.0]
[1641689167181,23.7128717,143.55,143.42,0.25]
[1641689167383,79.4115,143.6,143.45,0.30696341]
[1641689167681,79.4115,143.6,143.54,10.4408]
[1641689167884,9.8264,143.6,143.55,0.25]
[1641689168080,1.94462783,143.68,143.55,8.63]
[1641689168281,31.59312144,143.66,143.55,8.63]
[1641689168481,31.59312144,143.66,143.56,0.26]
[1641689168681,31.59312144,143.66,143.55,8.63]
[1641689168682,31.59312144,143.66,143.55,35.0407]
[1641689168883,31.59312144,143.66,143.55,34.7907]
[1641689169081,31.59312144,143.66,143.54,10.4402]
[1641689169284,31.59312144,143.66,143.45,119.12566341]
[1641689169285,31.59312144,143.66,143.49,8.38]
[1641689169484,0.25,143.65,143.49,8.38]
[1641689169683,8.38,143.64,143.47,22.7858]
[1641689169883,24.77516814,143.63,143.49,15.43582538]
[1641689170086,24.27516814,143.63,143.49,8.38]
[1641689170387,10.4482,143.61,143.5,0.25]
[1641689170583,24.27516814,143.63,143.53,10.4473]
[1641689170989,24.27516814,143.63,143.52,34.8199]
[1641689171793,0.26,143.62,143.54,10.4472]
[1641689171993,24.27516814,143.63,143.54,10.4472]
[1641689172193,24.27516814,143.63,143.55,0.25]
[1641689172392,1.94462783,143.69,143.55,0.51]
[1641689172593,1.94462783,143.69,143.56,8.38]
[1641689172793,1.94462783,143.69,143.6,10.4367]
[1641689173418,25.86295263,143.68,143.6,10.4367]
[1641689173918,25.61295263,143.68,143.6,10.4367]
[1641689174719,27.55758046,143.68,143.6,10.4367]
[1641689175321,27.55758046,143.68,143.62,10.4386]
[1641689175521,25.61295263,143.68,143.58,0.25]
[1641689175719,1.94462783,143.7,143.61,34.7913]
[1641689175920,1.94462783,143.7,143.62,0.26]
[1641689176326,1.94462783,143.7,143.62,10.4398]
[1641689176521,1.94462783,143.71,143.62,10.4398]
[1641689176922,1.94462783,143.71,143.63,3.51]
[1641689177122,1.94462783,143.71,143.64,8.38]
[1641689177330,1.94462783,143.71,143.68,10.4334]
[1641689177524,3.77141367,143.71,143.69,6.06437095]
[1641689177724,3.77141367,143.71,143.66,34.7812]
[1641689178026,3.77141367,143.71,143.65,8.89]
[1641689178027,3.77141367,143.71,143.63,8.64]
[1641689178225,3.77141367,143.71,143.66,0.26]
[1641689178424,26.81273958,143.72,143.68,10.4346]
[1641689178624,26.81273958,143.72,143.64,0.25]
[1641689178924,26.81273958,143.72,143.64,35.0368]
[1641689179324,26.81273958,143.72,143.64,34.7868]
[1641689179527,26.81273958,143.72,143.61,8.38]
[1641689179923,26.81273958,143.72,143.62,0.25]
[1641689180725,26.81273958,143.72,143.62,0.51]
[1641689180924,26.81273958,143.72,143.62,0.25]
[1641689181125,26.81273958,143.72,143.62,10.6898]
[1641689181326,26.81273958,143.72,143.62,10.4398]
[1641689182425,26.81273958,143.72,143.61,8.38]
[1641689182925,0.51,143.71,143.54,55.8784]
[1641689183124,75.839,143.71,143.54,8.38]
[1641689183524,84.219,143.71,143.55,10.445]
[1641689183726,84.219,143.71,143.47,108.0265]
[1641689183928,162.4143,143.71,143.48,8.38]
[1641689184223,162.4143,143.71,143.46,8.38]
[1641689184224,168.37446103,143.71,143.46,8.38]
[1641689184624,3.77141367,143.68,143.47,29.5484742]
[1641689184828,10.4503,143.57,143.47,39.9983742]
[1641689185225,22.95366393,143.56,143.48,0.26]
[1641689185424,76.2894,143.6,143.48,0.26]
[1641689185626,34.835,143.61,143.48,0.26]
[1641689185828,111.2564,143.67,143.48,21.39457906]
[1641689186026,3.0,143.66,143.49,3.0]
[1641689186226,3.0,143.66,143.5,8.38]
[1641689186527,28.99937101,143.65,143.51,16.08338712]
[1641689186726,28.99937101,143.65,143.52,8.38]
[1641689186927,28.99937101,143.65,143.52,8.89]
[1641689187127,28.99937101,143.65,143.53,3.0]
[1641689187328,28.99937101,143.65,143.54,8.38]
[1641689187528,39.44477101,143.65,143.54,19.3327]
[1641689187727,28.99937101,143.65,143.54,10.7027]
[1641689187935,28.99937101,143.65,143.54,10.4427]
[1641689188532,28.99937101,143.65,143.54,18.0717]
[1641689189132,28.99937101,143.65,143.55,17.56141826]
[1641689189331,28.99937101,143.65,143.55,28.25351826]
[1641689189533,28.99937101,143.65,143.56,0.26]
[1641689190330,28.99937101,143.65,143.56,10.7018]
[1641689190533,10.4473,143.62,143.55,0.25]
[1641689190833,28.99937101,143.65,143.51,43.2043]
[1641689191032,28.99937101,143.65,143.52,0.51]
[1641689191835,10.4478,143.61,143.54,10.4472]
[1641689192135,24.44151896,143.62,143.54,10.4472]
[1641689192335,24.44151896,143.62,143.55,0.26]
[1641689192537,24.44151896,143.62,143.55,0.51]
[1641689192939,24.44151896,143.62,143.55,10.9567]
[1641689193939,24.44151896,143.62,143.55,10.4467]
[1641689194141,24.44151896,143.62,143.5,10.4507]
[1641689194340,3.25,143.61,143.46,8.38]
[1641689195040,10.452,143.55,143.46,8.38]
[1641689195240,25.7479273,143.56,143.46,18.8326]
[1641689195541,75.2458,143.6,143.46,18.8326]
[1641689196140,85.695,143.6,143.46,18.8326]
[1641689196341,23.87867598,143.59,143.47,0.25]
[1641689196541,23.87867598,143.59,143.47,10.6992]
[1641689196747,23.87867598,143.59,143.44,31.4658]
[1641689196952,3.25,143.58,143.42,55.91]
[1641689197151,10.456,143.5,143.42,55.91]
[1641689197349,0.25,143.58,143.42,8.38]